Workbook

Sheet План ФХД 2017
L1: Таблица 2
A2: Показатели по поступлениям и выплатам учреждения на 2017 год (по состоянию на 13.03.2017)
A3: МБОУ "Средняя школа № 30"
A4: рубли | D4: =D17-K17 -> 93260790
A5: Наименование показателя | B5: Код строки | C5: Код по бюджетной классификации | D5: ВСЕГО | E5: Объем финансового обеспечения, руб. | K5: Поступления от оказания услуг (выполнения работ) на платной основе и от иной приносящей доход деятельности
E6: Субсидия на финансовое обеспечение выполнения муниципального задания | G6: Субсидии, предоставляемые в соответствии с абзацем вторым пункта 1 статьи 78.1 Бюджетного кодекса Российской Федерации | I6: Субсидии на осуществление капитальных вложений
E7: Местный бюджет | F7: Краевой бюджет | G7: Местный бюджет | H7: Краевой бюджет | I7: Местный бюджет | J7: Краевой бюджет | K7: Всего | L7: Из них гранты
A8: 1 | B8: 2 | C8: 3 | D8: 4 | E8: 5 | F8: 6 | G8: 7 | H8: 8 | I8: 9 | J8: 10 | K8: 11 | L8: 12 | M8: МЗ+ИЦ
A9: Поступления от доходов, всего: | B9: 100 | C9: х | D9: =SUM(D10:D15) -> 94465090 | E9: =SUM(E10:E15) -> 20484600 | F9: =SUM(F10:F15) -> 67580990 | G9: =SUM(G10:G15) -> 2918900 | H9: =SUM(H10:H15) -> 2276300 | I9: х | J9: х | K9: =SUM(K10:K15) -> 1204300 | L9: =SUM(L10:L15) -> 0 | M9: =SUM(E9:H9) -> 93260790
A10: в том числе: доходы от собственности | B10: 110 | D10: =SUM(E10:K10) -> 0 | E10: х | F10: х | G10: х | H10: х | I10: х | J10: х | K10: х | L10: х | M10: Пост. от 05.02.2016 № 84 в графе 3 по строкам 110 - 180, 300 - 420 указываются коды классификации операций сектора государственного управления (КОСГУ) | N10: Расходный КОСГУ: 130: ДопЭК 810+мун.задание 140: пени, штрафы (например, за нарушение сроков поставки удерживают с поставщика) 180: ДопЭК 820+иные цели
A11: доходы от оказания услуг, работ | B11: 120 | C11: 130 | D11: 89269890 | E11: =E17 -> 20484600 | F11: =F17 -> 67580990 | G11: х | H11: х | I11: х | J11: х | K11: 1204300 | L11: х
A12: доходы от штрафов, пеней, иных сумм принудительного изъятия | B12: 130 | C12: 140 | D12: 0 | E12: х | F12: х | G12: х | H12: х | I12: х | J12: х | K12: 0 | L12: х
A13: безвозмездные поступления от наднациональных организаций, правительств иностранных государств, международных финансовых организаций | B13: 140 | D13: =SUM(E13:K13) -> 0 | E13: х | F13: х | G13: х | H13: х | I13: х | J13: х | K13: х | L13: х
A14: иные субсидии, предоставленные из бюджета | B14: 150 | C14: 180 | D14: =SUM(E14:K14) -> 5195200 | E14: х | F14: х | G14: =G17 -> 2918900 | H14: =H17 -> 2276300 | I14: х | J14: х | K14: х | L14: х
A15: прочие доходы | B15: 160 | C15: 180 | D15: 0 | E15: х | F15: х | G15: х | H15: х | I15: х | J15: х | K15: 0
A16: доходы от операций с активами | B16: 180 | D16: 0 | E16: х | F16: х | G16: х | H16: х | I16: х | J16: х | L16: х
A17: ВЫПЛАТЫ по расходам, всего: | B17: 200 | C17: х | D17: =SUM(D18,D23,D24,D25,D26,D27,D29,D28) -> 94465090 | E17: =SUM(E18,E23,E24,E25,E26,E27,E29,E28) -> 20484600 | F17: =SUM(F18,F23,F24,F25,F26,F27,F29,F28) -> 67580990 | G17: =SUM(G18,G23,G24,G25,G26,G27,G29,G28) -> 2918900 | H17: =SUM(H18,H23,H24,H25,H26,H27,H29,H28) -> 2276300 | I17: х | J17: х | K17: =SUM(K18,K23,K24,K25,K26,K27,K29,K28) -> 1204300 | L17: =SUM(L18,L23,L24,L25,L26,L27,L29,L28) -> 0
A18: в том числе на: выплаты персоналу, всего: | B18: 210 | D18: =SUM(E18:K18) -> 77615290 | E18: =SUM(E19,E22) -> 10578400 | F18: =SUM(F19,F22) -> 64299790 | G18: =SUM(G19,G22) -> 839100 | H18: =SUM(H19,H22) -> 1828500 | I18: х | J18: х | K18: =SUM(K19,K22) -> 69500 | L18: =SUM(L19,L22) -> 0 | M18: Пост. от 05.02.2016 № 84 по строкам 210 - 280 указываются коды видов расходов бюджетов Т.к. расходная часть плана, то ставлю расходный КВР
A19: из них: оплата труда и начисления на выплаты по оплате труда: | B19: 211 | D19: 74820500 | E19: =SUM(E20:E21) -> 10560800 | F19: =SUM(F20:F21) -> 64190200 | G19: =SUM(G20:G21) -> 0 | H19: =SUM(H20:H21) -> 0 | I19: х | J19: х | K19: =SUM(K20:K21) -> 69500 | L19: 0
A20: - оплата труда | C20: 111 | D20: 58660100 | E20: 8111200 | F20: 50494200 | I20: х | J20: х | K20: 54700 | N20: ДопКР 991
A21: - начисления на выплаты по оплате труда | C21: 119 | D21: 16160400 | E21: 2449600 | F21: 13696000 | I21: х | J21: х | K21: 14800 | N21: ДопКР 992
A22: иные выплаты персоналу учреждений, за исключением фонда оплаты труда | B22: 212 | C22: 112 | D22: 2794790 | E22: 17600 | F22: 109590 | G22: 839100 | H22: 1828500 | I22: х | J22: х | N22: ДопКР 911,912,913,917,918,919,921,923,924,952
A23: социальные и иные выплаты населению, всего | B23: 220 | D23: 0 | E23: х | F23: х | G23: х | H23: х | I23: х | J23: х | K23: х | L23: х
A24: уплата налогов, сборов и иных платежей, всего | B24: 230 | C24: 112 | D24: =SUM(E24:K24) -> 0 | H24: х | I24: х | J24: х | N24: ДопКР 962
C25: 244 | D25: 20000 | E25: 0 | F25: 20000 | G25: 0 | H25: х | I25: х | J25: х
A26: безвозмездные перечисления организациям | B26: 240 | D26: 0 | E26: х | F26: х | G26: х | H26: х | I26: х | J26: х | K26: х | L26: х
A27: прочие расходы (кроме расходов на закупку товаров, работ, услуг) | B27: 250 | C27: 244 | D27: 0 | E27: 0 | F27: 0 | G27: 0 | H27: 0 | I27: х | J27: х | N27: ДопКР 958
A28: расходы на закупку товаров, работ, услуг, всего | B28: 260 | C28: 244 | D28: 16382000 | E28: 9906200 | F28: 3261200 | G28: 2079800 | H28: 0 | I28: х | J28: х | K28: 1134800 | N28: ДопКР 922,925,931,932,933,941,942,943,944,947,951, 953,954,955,956,957,963,971,981,982,983,984,985,995,996
C29: 321 | D29: =SUM(E29:K29) -> 447800 | E29: х | F29: х | G29: х | H29: 447800 | I29: х | J29: х | K29: х | L29: х | N29: ДопКР 993
A30: Остаток средств на начало года | B30: 500 | C30: Х | D30: =SUM(E30:K30) -> 1334100.73 | E30: 307573.52 | F30: 315206.73 | G30: =35982.23+3782.74 -> 39764.97 | H30: =139017.55+15.63+10320.28 -> 149353.46 | I30: х | J30: х | K30: =522201.05+1 -> 522202.05 | L30: 1
A31: Остаток средств на конец года | B31: 600 | C31: Х | D31: =SUM(E31:K31) -> 0 | I31: х | J31: х
A34: Заместитель начальника по экономике и финансам | I34: Е.Г. Трофимова
A35: Директор МКУ "ОК УОиДО" | I35: Л.Э. Ерохина
A38: Миронова Е.С.
A39: 43-72-00*3224

Sheet Закупка ТРУ
L1: Таблица 2.1
A2: Показатели выплат по расходам
A3: на закупку товаров, работ, услуг учреждения на 2017-2019 гг.
A4: ='План ФХД 2017'!A3:L3 -> МБОУ "Средняя школа № 30"
A6: Наименование показателя | B6: Код строки | C6: Год начала закупки | D6: Сумма выплат по расходам на закупку товаров, работ и услуг, руб. (с точностью до двух знаков после запятой - 0,00)
D7: всего на закупки | G7: в том числе:
G8: в соответствии с Федеральным законом от 05.04.2013 N 44-ФЗ "О контрактной системе в сфере закупок товаров, работ, услуг для обеспечения государственных и муниципальных нужд" | J8: в соответствии с Федеральным законом от 18.07.2011 N 223-ФЗ "О закупках товаров, работ, услуг отдельными видами юридических лиц" | N8: всего на закупки
D9: на 2017 г. очередной финансовый год | E9: на 2018 г. 1-й год планового периода | F9: на 2019 г. 2-й год планового периода | G9: на 2017 г. очередной финансовый год | H9: на 2018 г. 1-й год планового периода | I9: на 2019 г. 2-й год планового периода | J9: на 2017 г. очередной финансовый год | K9: на 2018 г. 1-й год планового периода | L9: на 2019 г. 1-й год планового периода | N9: на 2017 г. очередной финансовый год | O9: на 2018 г. 1-й год планового периода | P9: на 2019 г. 2-й год планового периода
A10: 1 | B10: 2 | C10: 3 | D10: 4 | E10: 5 | F10: 6 | G10: 7 | H10: 8 | I10: 9 | J10: 10 | K10: 11 | L10: 12 | N10: КОНТРОЛЬНЫЕ СУММЫ!!!
A11: Выплаты по расходам на закупку товаров, работ, услуг всего: | B11: 0001 | C11: X | D11: =D12+D13 -> 16829800 | E11: 16466800 | F11: 16654000 | G11: 16829800 | H11: 16466800 | I11: 16654000 | J11: 0 | K11: 0 | L11: 0 | N11: ='План ФХД 2017'!D28+'План ФХД 2017'!D29 -> 16829800 | O11: 16466800 | P11: 16654000
A12: в том числе: на оплату контрактов, заключенных до начала очередного финансового года | B12: 1001 | D12: =SUM(G12,J12) -> 11105041.65 | E12: 6617941.62 | F12: 3274162.2 | G12: 11105041.65 | H12: 6617941.62 | I12: 3274162.2
A13: на закупку товаров работ, услуг по году начала закупки | B13: 2001 | D13: 5724758.35 | E13: 9848858.38 | F13: 13379837.8 | G13: =N11-G12 -> 5724758.35 | H13: =O11-H12 -> 9848858.38 | I13: =P11-I12 -> 13379837.8
A14: Директор МБОУ "СШ № 30" | E14: Н.А.Качанова
